fUST/lending_fUST_20241106
["ID","MTS","AMOUNT","RATE_DAILY","PERIOD"]
[341374997,1730855443880,-565.08,0.00038904,14]
[341374999,1730855443890,-500.0,0.00038904,14]
[341375001,1730855443899,-500.0,0.00038904,14]
[341375003,1730855443909,-500.0,0.00038904,14]
[341375005,1730855443919,-473.24910883,0.00038904,14]
[341375008,1730855443928,-500.0,0.00038904,14]
[341375010,1730855443938,-500.0,0.00038904,14]
[341375012,1730855443947,-500.0,0.00038904,14]
[341375014,1730855443957,-500.0,0.00038904,14]
[341375016,1730855443966,-514.86706025,0.00038904,14]
[341375019,1730855443976,-500.0,0.00038904,14]
[341375021,1730855443985,-500.0,0.00038904,14]
[341375023,1730855443995,-500.0,0.00038904,14]
[341375024,1730855444004,-869.85,0.00038904,14]
[341375027,1730855444013,-1341.45,0.00038904,14]
[341375029,1730855444023,-500.0,0.00038904,14]
[341375031,1730855444033,-2643.88,0.00038904,14]
[341375033,1730855444042,-500.0,0.00038904,14]
[341375035,1730855444053,-500.0,0.00038904,7]
[341375037,1730855444063,-286.82937528,0.00038904,14]
[341375039,1730855444074,-500.0,0.00038904,14]
[341375041,1730855444086,-500.0,0.00038904,14]
[341375043,1730855444096,-545.02152592,0.00038904,14]
[341375045,1730855444105,-500.0,0.00038904,14]
[341375047,1730855444114,-500.0,0.00038904,14]
[341375048,1730855444124,-500.0,0.00038904,14]
[341375049,1730855444133,-3154.12,0.00038904,14]
[341375050,1730855444143,-500.0,0.00038904,14]
[341375051,1730855444153,-644.89,0.00038904,14]
[341375052,1730855444162,-631.58,0.00038904,14]
[341375053,1730855444173,-500.0,0.00038904,14]
[341375054,1730855444186,-506.98873992,0.00038904,14]
[341375055,1730855444196,-1457.07,0.00038904,14]
[341375056,1730855444206,-500.0,0.00038904,14]
[341375057,1730855444216,-525.05,0.00038904,14]
[341375058,1730855444225,-500.0,0.00038904,14]
[341375060,1730855444240,-6763.22,0.00038904,14]
[341375062,1730855444250,-500.0,0.00038904,14]
[341375064,1730855444260,-500.0,0.00038904,14]
[341375066,1730855444270,-891.39,0.00038904,14]
[341375068,1730855444281,-500.0,0.00038904,14]
[341375070,1730855444291,-500.0,0.00038904,14]
[341375071,1730855444300,-500.0,0.00038904,14]
[341375072,1730855444310,-627.76,0.00038904,14]
[341375073,1730855444321,-500.0,0.00038904,14]
[341375074,1730855444331,-500.0,0.00038904,14]
[341375076,1730855444407,-500.0,0.00038904,14]
[341375078,1730855444416,-500.0,0.00038904,14]
[341375080,1730855444425,-500.0,0.00038904,14]
[341375082,1730855444435,-837.3,0.00038904,14]
[341375083,1730855444445,-500.0,0.00038904,14]
[341375085,1730855444454,-4427.04,0.00038904,14]
[341375087,1730855444463,-500.0,0.00038904,14]
[341375089,1730855444473,-500.0,0.00038904,14]
[341375090,1730855444482,-500.0,0.00038904,14]
[341375091,1730855444492,-500.0,0.00038904,14]
[341375092,1730855444501,-500.0,0.00038904,14]
[341375093,1730855444511,-500.0,0.00038904,14]
[341375094,1730855444521,-421.58241928,0.00038904,14]
[341375095,1730855444530,-500.0,0.00038904,14]
[341375096,1730855444540,-500.0,0.00038904,14]
[341375097,1730855444550,-1333.5,0.00038904,14]
[341375098,1730855444559,-152.73122337,0.00038904,14]
[341375099,1730855444568,-500.0,0.00038904,14]
[341375100,1730855444577,-500.0,0.00038904,14]
[341375101,1730855444592,-500.0,0.00038904,14]
[341375102,1730855444602,-9130.5,0.00038904,14]
[341375103,1730855444611,-500.0,0.00038904,14]
[341375104,1730855444620,-317.7539843,0.00038904,14]
[341375105,1730855444630,-500.0,0.00038904,14]
[341375106,1730855444639,-500.0,0.00038904,14]
[341375107,1730855444649,-150.21,0.00038904,14]
[341375108,1730855444659,-500.0,0.00038904,14]
[341375109,1730855444668,-500.0,0.00038904,14]
[341375110,1730855444677,-500.0,0.00038904,14]
[341375111,1730855444686,-1651.81,0.00038904,14]
[341375112,1730855444695,-207.42981689,0.00038904,14]
[341375113,1730855444704,-500.0,0.00038904,14]
[341375114,1730855444714,-500.0,0.00038904,14]
[341375115,1730855444723,-500.0,0.00038904,14]
[341375116,1730855444732,-500.0,0.00038904,14]
[341375117,1730855444741,-500.0,0.00038904,14]
[341375118,1730855444750,-2905.4,0.00038904,14]
[341375119,1730855444759,-500.0,0.00038904,14]
[341375120,1730855444768,-500.0,0.00038904,14]
[341375121,1730855444777,-500.0,0.00038904,14]
[341375122,1730855444786,-500.0,0.00038904,14]
[341375123,1730855444795,-500.0,0.00038904,14]
[341375124,1730855444805,-1528.87,0.00038904,14]
[341375125,1730855444814,-798.67,0.00038904,14]
[341375126,1730855444824,-500.0,0.00038904,7]
[341375127,1730855444833,-500.0,0.00038904,14]
[341375128,1730855444845,-500.0,0.00038904,14]
[341375129,1730855444855,-666.49,0.00038904,14]
[341375130,1730855444865,-500.0,0.00038904,14]
[341375131,1730855444875,-500.0,0.00038904,14]
[341375132,1730855444885,-2996.52,0.00038904,14]
[341375133,1730855444895,-500.0,0.00038904,14]
[341375134,1730855444905,-782.44,0.00038904,14]
[341375135,1730855444915,-505.92908665,0.00038904,14]
[341375136,1730855444924,-500.0,0.00038904,14]
[341375137,1730855444934,-500.0,0.00038904,2]
[341375138,1730855444944,-500.0,0.00038904,14]
[341375139,1730855444954,-500.0,0.0003895,2]
[341375140,1730855444963,-500.0,0.00038973,5]
[341375141,1730855444973,-500.0,0.00038973,5]
[341375142,1730855444983,-500.0,0.00038973,5]
[341375143,1730855444992,-500.0,0.00038973,5]
[341375144,1730855445002,-173.85910009,0.00038973,5]
[341375145,1730855445012,-500.0,0.00038973,5]
[341375146,1730855445022,-500.0,0.00038973,5]
[341375147,1730855445031,-500.0,0.00038973,5]
[341375148,1730855445041,-500.0,0.00038973,5]
[341375149,1730855445051,-500.0,0.00038973,5]
[341375150,1730855445061,-505.67176339,0.00038973,5]
[341375151,1730855445070,-500.0,0.00038973,5]
[341375152,1730855445079,-477.49339932,0.00039,2]
[341375153,1730855445091,-74787.19941622,0.00039,2]
[341375161,1730855445664,-500.0,0.00034233,7]
[341375163,1730855445674,-396.7452437,0.00035029,7]
[341375166,1730855445684,-185.24426567,0.00035029,7]
[341375168,1730855445694,-1191.34,0.00038346,10]
[341375169,1730855445703,-500.0,0.00038356,14]
[341375170,1730855445712,-365.29854441,0.00038356,14]
[341375171,1730855445723,-500.0,0.00038356,14]
[341375172,1730855445733,-500.0,0.00038356,14]
[341375173,1730855445743,-500.0,0.00038373,5]
[341375175,1730855445753,-500.0,0.0003863,14]
[341375177,1730855445763,-500.0,0.0003863,14]
[341375178,1730855445774,-501.63272483,0.00038904,14]
[341375179,1730855445783,-500.0,0.00038904,14]
[341375180,1730855445793,-1707.03738172,0.00039,2]
[341375181,1730855445806,-22542.64238137,0.00039,2]
[341375182,1730855445867,-299.69195969,0.00039,2]
[341375184,1730855445879,-2931.61949283,0.00039,2]
[341375186,1730855445891,-3263.79889224,0.00039,2]
[341375187,1730855445903,-7124.6,0.00039,2]
[341375188,1730855445914,-1243.3,0.00039,2]
[341375189,1730855445926,-319.49848464,0.00039,2]
[341375222,1730855469649,520.83333333,0.00022857,2]
[341375223,1730855531798,520.83333333,0.00020816,2]
[341375227,1730855786456,174.653881,0.00013973,2]
[341375229,1730856144382,520.83333333,0.00020816,2]
[341375243,1730856343222,-341.62,0.00027,2]
[341375244,1730856343244,-341.62,0.00029,2]
[341375245,1730856343270,-151.0,0.0003,120]
[341375246,1730856343291,-151.0,0.0003,120]
[341375247,1730856343313,-150.0,0.000301,2]
[341375248,1730856343334,-341.62,0.00032,2]
[341375249,1730856343362,-152.4,0.000335,31]
[341375250,1730856343382,-179.13457,0.00033561,2]
[341375251,1730856343403,-173.77009913,0.00033653,2]
[341375252,1730856343422,-2419.61259701,0.00033673,2]
[341375259,1730856426091,-239.14,0.00027,2]
[341375260,1730856426114,-239.14,0.00029,2]
[341375261,1730856426135,-239.14,0.00032,2]
[341375262,1730856426157,-165.0,0.00033,2]
[341375263,1730856426179,-86.90328743,0.00033673,2]
[341375264,1730856426210,-493.48411556,0.00033673,2]
[341375265,1730856426231,-151.0,0.00033753,120]
[341375266,1730856426252,-171.39938844,0.00033879,2]
[341375267,1730856430122,-121.76075806,0.00033879,2]
[341375268,1730856430145,-1028.3039444,0.00033968,2]
[341375269,1730856436099,-1996.4729358,0.00033968,2]
[341375270,1730856436122,-187.889754,0.00033981,120]
[341375271,1730856436148,-239.14,0.00034,2]
[341375272,1730856436170,-399.7613039,0.00034155,2]
[341375273,1730856436193,-155.0,0.00034234,30]
[341375274,1730856436214,-155.0,0.00034234,30]
[341375275,1730856436237,-99.39795515,0.00034234,30]
[341375276,1730856436273,-55.60204485,0.00034234,30]
[341375277,1730856436294,-518.41,0.00034251,30]
[341375278,1730856436314,-155.0,0.00034267,30]
[341375279,1730856436335,-155.0,0.00034267,30]
[341375280,1730856436356,-155.0,0.00034267,30]
[341375281,1730856436376,-174.80981786,0.00034267,30]
[341375282,1730856436397,-257.08789431,0.000345,2]
[341375283,1730856436423,-151.0,0.00035014,120]
[341375284,1730856436446,-152.4,0.000356,31]
[341375285,1730856436469,-152.4,0.000356,31]
[341375286,1730856436489,-239.14,0.00037,2]
[341375287,1730856436512,-500.0,0.00037355,7]
[341375288,1730856436532,-500.0,0.00037355,2]
[341375289,1730856436552,-274.85499699,0.00037355,15]
[341375296,1730856502842,6595.51947067,0.000125,2]
[341375300,1730856546198,-667.29621372,0.00023,2]
[341375301,1730856546224,-150.0,0.00027,2]
[341375302,1730856546254,-150.0,0.00029,2]
[341375303,1730856546277,-520.83333333,0.00029763,2]
[341375304,1730856546300,-195.8865,0.0003,2]
[341375305,1730856546324,-164.525,0.0003,2]
[341375309,1730856564114,-1048.1860515,0.00031926,2]
[341375310,1730856564135,-150.0,0.00032,2]
[341375311,1730856564156,-3235.77257669,0.000333,2]
[341375312,1730856569914,520.83333333,0.00027526,2]
[341375313,1730856573127,-4073.05031371,0.000333,2]
[341375315,1730856608923,150.0,0.00027,2]
[341375316,1730856609710,150.0,0.00029,2]
[341375320,1730856632041,520.83333333,0.0002529,2]
[341375355,1730856632809,-150.0,0.00032,2]
[341375356,1730856632819,-226.89947302,0.000333,2]
[341375357,1730856632831,-3745.28186547,0.000333,2]
[341375358,1730856632840,-1225.60813453,0.0003398,4]
[341375373,1730856638967,-332.81279208,0.0003398,4]
[341375374,1730856638977,-86.06720792,0.00034,2]
[341375375,1730856639154,-63.93279208,0.00034,2]
[341375376,1730856639164,-425.15357082,0.00034151,2]
[341375377,1730856639176,-71.02041952,0.00034151,2]
[341375378,1730856639195,-150.66622307,0.0003422,2]
[341375379,1730856639211,-298.06808844,0.0003424,30]
[341375380,1730856639230,-1956.28210436,0.0003424,30]
[341375381,1730856639245,-177.07465817,0.00034249,7]
[341375382,1730856639257,-500.0,0.00034249,7]
[341375383,1730856639271,-502.71213366,0.00034249,7]
[341375384,1730856639286,-500.0,0.00034249,7]
[341375385,1730856639299,-500.0,0.00034249,7]
[341375386,1730856639314,-583.40162789,0.00034249,7]
[341375387,1730856639328,-500.0,0.00034249,7]
[341375388,1730856639340,-186.44683261,0.00034249,7]
[341375389,1730856639354,-479.76186579,0.00034249,7]
[341375390,1730856639367,-500.0,0.00034249,7]
[341375391,1730856639382,-500.0,0.00034249,7]
[341375392,1730856639395,-517.53245211,0.00034249,7]
[341375393,1730856639407,-321.04540729,0.0003425,2]
[341375394,1730856639424,-1096.83607619,0.0003425,2]
[341375395,1730856639438,-2000.0,0.0003425,2]
[341375396,1730856639451,-300.0,0.0003425,2]
[341375397,1730856639465,-798.01635438,0.0003425,2]
[341375398,1730856639476,-517.11713947,0.0003425,2]
[341375399,1730856639489,-292.65084781,0.0003425,2]
[341375400,1730856639500,-4174.55725492,0.0003425,2]
[341375401,1730856639511,-322.27261764,0.0003425,2]
[341375402,1730856639522,-338.95460183,0.0003425,2]
[341375403,1730856639537,-1192.17926379,0.0003425,2]
[341375404,1730856639555,-287.55268934,0.0003425,2]
[341375405,1730856639568,-164.16620873,0.0003425,2]
[341375406,1730856639581,-4144.85207714,0.0003425,2]
[341375407,1730856639596,-1191.71124874,0.0003425,2]
[341375408,1730856639608,-155.19242757,0.0003425,2]
[341375409,1730856639623,-518.34670063,0.0003425,2]
[341375410,1730856639637,-5714.37413901,0.0003425,5]
[341375411,1730856639651,-224.56451545,0.0003425,2]
[341375412,1730856639668,-439.63201889,0.0003425,2]
[341375413,1730856639679,-1024.32857116,0.0003425,2]
[341375414,1730856639690,-1838.5624122,0.0003425,2]
[341375415,1730856639700,-910.04757346,0.0003425,2]
[341375416,1730856639716,-3072.10553188,0.0003425,2]
[341375417,1730856639730,-176.46543725,0.0003425,2]
[341375418,1730856639744,-461.19331549,0.0003425,2]
[341375419,1730856639757,-835.4120179,0.0003425,2]
[341375420,1730856639769,-229.62848777,0.0003425,2]
[341375421,1730856639784,-886.319,0.0003425,2]
[341375422,1730856639796,-1889.9759574,0.0003425,2]
[341375423,1730856639808,-222.05854503,0.0003425,2]
[341375424,1730856639824,-1543.90020235,0.0003425,5]
[341375425,1730856639835,-200.0,0.0003425,2]
[341375426,1730856639847,-1240.0,0.0003425,2]
[341375427,1730856639857,-159.84749256,0.0003425,2]
[341375428,1730856639868,-186.68756343,0.0003425,2]
[341375429,1730856639883,-199.999999,0.0003425,2]
[341375430,1730856639895,-174.4480162,0.0003425,7]
[341375431,1730856639908,-174.64283705,0.00034285,30]
[341375432,1730856639921,-1309.62978914,0.00034728,12]
[341375433,1730856639934,-496.17399034,0.00035258,2]
[341375434,1730856639945,-496.17399034,0.00036365,2]
[341375435,1730856639957,-153.0,0.00037205,30]
[341375436,1730856639968,-154.25440453,0.00037353,15]
[341375437,1730856639980,-279.48050042,0.00037353,15]
[341375438,1730856639991,-496.17399034,0.00037472,2]
[341375439,1730856640003,-151.0,0.00037507,120]
[341375441,1730856640015,-3945.80871632,0.00037509,60]
[341375442,1730856640026,-529.0,0.00037776,2]
[341375443,1730856640042,-500.0,0.00037795,5]
[341375444,1730856640055,-152.0,0.00038,2]
[341375445,1730856640067,-597.35172996,0.000382,109]
[341375446,1730856640079,-597.35172992,0.000382,109]
[341375447,1730856640091,-597.35172992,0.000382,109]
[341375448,1730856640106,-3947.3993863,0.00038345,120]
[341375449,1730856640119,-159.34,0.00038346,3]
[341375450,1730856640130,-478.06,0.00038346,3]
[341375451,1730856640142,-566.83,0.00038346,10]
[341375452,1730856640154,-1141.51,0.00038355,120]
[341375454,1730856640166,-500.0,0.00038356,14]
[341375455,1730856640178,-500.0,0.00038356,14]
[341375456,1730856640190,-500.0,0.00038356,14]
[341375457,1730856640201,-500.0,0.00038356,14]
[341375458,1730856640212,-500.0,0.00038356,14]
[341375459,1730856640225,-437.23019936,0.00038356,14]
[341375460,1730856640237,-500.0,0.00038356,14]
[341375461,1730856640249,-560.50390433,0.00038356,14]
[341375463,1730856640359,-188.0,0.00038356,14]
[341375464,1730856640374,-502.73091166,0.00038356,14]
[341375465,1730856640384,-500.0,0.00038356,14]
[341375466,1730856640394,-500.0,0.00038356,14]
[341375467,1730856640403,-500.0,0.00038356,2]
[341375468,1730856640413,-506.91648772,0.00038356,14]
[341375469,1730856640423,-500.0,0.00038356,14]
[341375470,1730856640433,-502.70236609,0.00038356,14]
[341375471,1730856640442,-500.0,0.00038356,14]
[341375472,1730856640452,-500.0,0.00038356,14]
[341375473,1730856640461,-502.93571961,0.00038356,14]
[341375474,1730856640471,-500.0,0.00038356,14]
[341375476,1730856640480,-502.26869928,0.00038356,14]
[341375478,1730856640490,-506.34650998,0.00038356,14]
[341375480,1730856640499,-500.0,0.00038356,14]
[341375482,1730856640509,-500.0,0.00038356,14]
[341375484,1730856640519,-405.46832262,0.00038356,14]
[341375486,1730856640528,-500.0,0.00038356,14]
[341375488,1730856640540,-500.0,0.00038356,14]
[341375489,1730856640550,-500.0,0.00038356,14]
[341375490,1730856640559,-514.6971034,0.00038356,14]
[341375491,1730856640568,-500.0,0.00038356,14]
[341375492,1730856640578,-500.0,0.00038356,14]
[341375493,1730856640587,-504.26874824,0.00038356,14]
[341375494,1730856640596,-500.0,0.00038356,14]
[341375495,1730856640605,-285.04357136,0.00038356,14]
[341375496,1730856640615,-500.0,0.00038356,14]
[341375498,1730856640624,-500.0,0.00038356,14]
[341375500,1730856640634,-500.0,0.00038356,14]
[341375502,1730856640643,-500.0,0.00038356,14]
[341375504,1730856640653,-500.0,0.00038356,14]
[341375506,1730856640662,-500.0,0.00038356,14]
[341375508,1730856640672,-500.0,0.00038356,14]
[341375510,1730856640681,-512.60068679,0.00038356,14]
[341375512,1730856640691,-500.0,0.00038356,14]
[341375514,1730856640700,-500.0,0.00038356,14]
[341375516,1730856640712,-509.09127653,0.00038356,14]
[341375517,1730856640721,-500.0,0.00038356,14]
[341375518,1730856640730,-500.0,0.00038356,14]
[341375519,1730856640740,-500.0,0.00038356,14]
[341375520,1730856640750,-500.0,0.00038356,14]
[341375521,1730856640759,-500.0,0.00038356,14]
[341375522,1730856640769,-500.0,0.00038356,14]
[341375523,1730856640785,-500.0,0.00038356,14]
[341375524,1730856640794,-500.0,0.00038356,120]
[341375525,1730856640803,-361.56666987,0.00038356,14]
[341375526,1730856640813,-500.0,0.00038356,14]
[341375527,1730856640822,-500.0,0.00038356,14]
[341375528,1730856640842,-500.0,0.00038356,14]
[341375529,1730856640853,-500.0,0.00038356,14]
[341375530,1730856640862,-500.0,0.00038356,7]
[341375531,1730856640872,-507.91930644,0.00038356,14]
[341375532,1730856640882,-500.0,0.00038356,14]
[341375533,1730856640891,-500.0,0.00038356,14]
[341375534,1730856640901,-500.0,0.00038356,14]
[341375535,1730856640911,-500.0,0.00038356,14]
[341375536,1730856640920,-500.0,0.00038356,14]
[341375537,1730856640930,-500.0,0.00038356,14]
[341375538,1730856640939,-510.96131442,0.00038356,14]
[341375539,1730856640949,-877.17,0.00038356,14]
[341375540,1730856640962,-512.66384961,0.00038356,14]
[341375541,1730856640971,-500.0,0.00038356,14]
[341375542,1730856640981,-638.36251477,0.00038356,14]
[341375543,1730856640991,-500.0,0.00038356,14]
[341375544,1730856641000,-500.0,0.00038356,14]
[341375545,1730856641010,-500.0,0.00038356,14]
[341375546,1730856641019,-500.0,0.00038356,14]
[341375547,1730856641032,-500.0,0.00038356,14]
[341375548,1730856641042,-500.0,0.00038356,14]
[341375549,1730856641052,-403.16389943,0.00038356,14]
[341375550,1730856641062,-500.0,0.00038356,14]
[341375551,1730856641072,-261.42568783,0.00038356,14]
[341375552,1730856641081,-500.0,0.00038356,14]
[341375553,1730856641091,-404.31379373,0.00038356,14]
[341375554,1730856641101,-500.0,0.00038356,14]
[341375555,1730856641111,-501.0,0.00038356,14]
[341375556,1730856641120,-352.38781201,0.00038356,14]
[341375557,1730856641130,-500.0,0.00038356,14]
[341375558,1730856641140,-500.0,0.00038356,14]
[341375559,1730856641150,-500.0,0.00038356,14]
[341375560,1730856641159,-500.0,0.00038356,14]
[341375561,1730856641168,-500.0,0.00038356,14]
[341375562,1730856641178,-500.0,0.00038356,14]
[341375563,1730856641188,-500.0,0.00038356,14]
[341375564,1730856641198,-500.0,0.00038356,14]
[341375565,1730856641208,-500.0,0.00038356,14]
[341375566,1730856641217,-500.0,0.00038356,14]
[341375567,1730856641227,-500.0,0.00038356,14]
[341375568,1730856641237,-500.0,0.00038356,14]
[341375569,1730856641246,-500.0,0.00038356,14]
[341375570,1730856641255,-500.0,0.00038356,14]
[341375571,1730856641265,-500.0,0.00038356,14]
[341375572,1730856641275,-500.0,0.00038356,14]
[341375573,1730856641287,-547.14427751,0.00038356,14]
[341375574,1730856641297,-500.0,0.00038356,14]
[341375575,1730856641306,-517.94341946,0.00038356,14]
[341375576,1730856641316,-500.0,0.00038356,14]
[341375577,1730856641326,-500.0,0.00038356,14]
[341375578,1730856641335,-500.0,0.00038356,14]
[341375579,1730856641345,-500.0,0.00038356,14]
[341375580,1730856641354,-554.04631003,0.00038356,14]
[341375581,1730856641363,-501.3390535,0.00038356,14]
[341375582,1730856641373,-500.0,0.00038356,14]
[341375583,1730856641382,-500.0,0.00038356,14]
[341375584,1730856641392,-500.0,0.00038356,14]
[341375585,1730856641401,-500.0,0.00038356,14]
[341375586,1730856641411,-500.0,0.00038356,14]
[341375587,1730856641421,-500.0,0.00038356,14]
[341375588,1730856641431,-500.0,0.00038356,14]
[341375589,1730856641440,-500.0,0.00038356,14]
[341375590,1730856641450,-500.0,0.00038356,14]
[341375591,1730856641459,-604.48571884,0.00038356,14]
[341375592,1730856641468,-505.55887462,0.00038356,14]
[341375593,1730856641478,-511.9036792,0.00038356,14]
[341375594,1730856641487,-498.97445574,0.00038356,14]
[341375595,1730856641496,-500.0,0.00038356,14]
[341375596,1730856641506,-1388.64,0.00038356,14]
[341375597,1730856641515,-610.29728907,0.00038356,14]
[341375598,1730856641525,-500.0,0.00038356,14]
[341375599,1730856641537,-490.58661394,0.00038356,14]
[341375600,1730856641546,-500.0,0.00038356,14]
[341375601,1730856641556,-500.0,0.00038356,14]
[341375602,1730856641566,-512.26283798,0.00038356,14]
[341375603,1730856641575,-425.55058744,0.00038356,14]
[341375604,1730856641586,-510.42187137,0.00038356,14]
[341375605,1730856641595,-1006.49749002,0.00038356,14]
[341375606,1730856641604,-500.0,0.00038356,14]
[341375607,1730856641613,-500.0,0.00038356,14]
[341375608,1730856641624,-316.57178388,0.00038356,14]
[341375609,1730856641633,-500.0,0.00038356,14]
[341375610,1730856641643,-500.0,0.00038356,14]
[341375611,1730856641652,-159.36620939,0.00038356,14]
[341375612,1730856641661,-500.0,0.00038356,14]
[341375613,1730856641671,-761.12,0.00038356,14]
[341375614,1730856641681,-546.4964895,0.00038356,14]
[341375615,1730856641691,-1173.77,0.00038356,14]
[341375616,1730856641700,-500.0,0.00038356,14]
[341375617,1730856641712,-500.0,0.00038356,14]
[341375618,1730856641722,-509.54634652,0.00038356,14]
[341375619,1730856641731,-2313.39,0.00038356,14]
[341375620,1730856641741,-610.40236435,0.00038356,14]
[341375621,1730856641752,-500.0,0.00038356,14]
[341375622,1730856641761,-500.0,0.00038356,14]
[341375623,1730856641770,-500.0,0.00038356,14]
[341375624,1730856641781,-505.45444374,0.00038356,14]
[341375625,1730856641792,-500.0,0.00038356,14]
[341375626,1730856641801,-500.0,0.00038356,14]
[341375627,1730856641810,-500.0,0.00038356,14]
[341375628,1730856641820,-1321.53,0.00038356,14]
[341375629,1730856641831,-779.97,0.00038356,14]
[341375630,1730856641842,-501.8772885,0.00038356,14]
[341375631,1730856641852,-500.0,0.00038356,14]
[341375632,1730856641862,-602.22,0.00038356,14]
[341375633,1730856641871,-500.0,0.00038356,14]
[341375634,1730856641881,-513.88296897,0.00038356,14]
[341375635,1730856641891,-506.29613886,0.00038356,14]
[341375636,1730856641900,-500.0,0.00038356,14]
[341375637,1730856641910,-500.0,0.00038356,14]
[341375638,1730856641920,-552.64,0.00038356,14]
[341375639,1730856641929,-500.0,0.00038356,14]
[341375640,1730856641939,-732.64,0.00038356,14]
[341375641,1730856641950,-6568.81,0.00038356,14]
[341375642,1730856641960,-1217.8,0.00038356,14]
[341375643,1730856641971,-500.0,0.00038356,14]
[341375644,1730856641980,-500.0,0.00038356,14]
[341375645,1730856641990,-2913.29,0.00038356,14]
[341375646,1730856641999,-500.0,0.00038356,14]
[341375647,1730856642012,-500.0,0.00038356,14]
[341375648,1730856642024,-500.0,0.00038356,14]
[341375649,1730856642035,-500.0,0.00038356,14]
[341375650,1730856642045,-500.0,0.00038356,14]
[341375651,1730856642054,-500.0,0.00038356,14]
[341375652,1730856642063,-3873.66,0.00038356,14]
[341375653,1730856642073,-500.0,0.00038356,14]
[341375654,1730856642082,-500.0,0.00038356,14]
[341375655,1730856642093,-568.50564606,0.00038356,14]
[341375656,1730856642103,-508.84263092,0.00038356,14]
[341375657,1730856642115,-533.63364078,0.00038356,14]
[341375658,1730856642124,-179.90628559,0.00038356,14]
[341375659,1730856642134,-500.0,0.00038356,14]
[341375660,1730856642144,-500.0,0.00038356,14]
[341375661,1730856642153,-500.0,0.00038356,14]
[341375662,1730856642163,-500.0,0.00038356,14]
[341375663,1730856642174,-500.0,0.00038356,14]
[341375664,1730856642184,-500.0,0.00038356,14]
[341375665,1730856642195,-500.0,0.00038356,14]
[341375666,1730856642205,-500.0,0.00038356,14]
[341375667,1730856642217,-549.29,0.00038356,14]
[341375668,1730856642226,-587.48662702,0.00038356,14]
[341375669,1730856642236,-500.0,0.00038356,14]
[341375670,1730856642245,-336.82492546,0.00038356,14]
[341375671,1730856642254,-500.0,0.00038356,14]
[341375672,1730856642263,-500.0,0.00038356,14]
[341375673,1730856642273,-500.0,0.00038356,14]
[341375674,1730856642285,-215.77562467,0.00038356,14]
[341375675,1730856642295,-500.0,0.00038356,14]
[341375676,1730856642304,-500.0,0.00038356,14]
[341375677,1730856642313,-500.0,0.00038356,14]
[341375678,1730856642322,-500.0,0.00038356,14]
[341375679,1730856642332,-500.0,0.00038356,14]
[341375680,1730856642341,-500.0,0.00038356,14]
[341375681,1730856642351,-500.0,0.00038356,14]
[341375682,1730856642360,-500.0,0.00038356,14]
[341375683,1730856642370,-493.26579483,0.00038356,14]
[341375684,1730856642379,-500.0,0.00038356,14]
[341375685,1730856642388,-500.0,0.00038356,14]
[341375686,1730856642397,-1000.0,0.00038356,30]
[341375687,1730856642406,-500.0,0.00038356,14]
[341375688,1730856642415,-8669.45,0.00038356,14]
[341375689,1730856642425,-500.0,0.00038356,14]